[Event "*** Biggest EVER Titled Tuesday"]
[Site "Chess.com"]
[Date "2018.04.17"]
[Round "2"]
[White "TastyFrenchFries"]
[Black "KNVB"]
[Result "0-1"]
[WhiteElo "2307"]
[BlackElo "2581"]
[TimeControl "180+2"]
[EndTime "13:24:21 PDT"]
[Termination "KNVB won by resignation"]

1. e4 {[%clk 0:03:00.8]} 1... e6 {[%clk 0:02:57.8]} 2. d4 {[%clk 0:03:01.2]}
2... d5 {[%clk 0:02:58.6]} 3. e5 {[%clk 0:02:54.1]} 3... c5 {[%clk 0:02:59.6]}
4. c3 {[%clk 0:02:54.9]} 4... Qb6 {[%clk 0:02:59.2]} 5. Nf3 {[%clk 0:02:51.4]}
5... Bd7 {[%clk 0:03:00.4]} 6. Bd3 {[%clk 0:02:24.3]} 6... cxd4 {[%clk
0:02:57.4]} 7. cxd4 {[%clk 0:02:23]} 7... Bb5 {[%clk 0:02:57.8]} 8. Nc3 {[%clk
0:02:21.5]} 8... Bxd3 {[%clk 0:02:57.6]} 9. Qxd3 {[%clk 0:02:23.4]} 9... Ne7
{[%clk 0:02:51.3]} 10. O-O {[%clk 0:02:24.1]} 10... Nec6 {[%clk 0:02:46]} 11.
Rd1 {[%clk 0:02:13.9]} 11... Nd7 {[%clk 0:02:35.7]} 12. a3 {[%clk 0:02:09.9]}
12... Na5 {[%clk 0:02:15.8]} 13. b4 {[%clk 0:02:05.5]} 13... Nc4 {[%clk
0:02:16.2]} 14. Rb1 {[%clk 0:02:00.2]} 14... Be7 {[%clk 0:02:07.2]} 15. Ne2
{[%clk 0:01:55.2]} 15... Rc8 {[%clk 0:02:01.1]} 16. h4 {[%clk 0:01:52]} 16... h6
{[%clk 0:01:57.4]} 17. Ng3 {[%clk 0:01:48.4]} 17... Qa6 {[%clk 0:01:41.5]} 18.
Nh5 {[%clk 0:01:45.7]} 18... Bf8 {[%clk 0:01:35.4]} 19. b5 {[%clk 0:01:39.1]}
19... Qa4 {[%clk 0:01:33.9]} 20. g4 {[%clk 0:01:26.6]} 20... Ncb6 {[%clk
0:01:09.6]} 21. Nf4 {[%clk 0:01:19.7]} 21... Qc2 {[%clk 0:01:06.6]} 22. Qxc2
{[%clk 0:01:17]} 22... Rxc2 {[%clk 0:01:08.5]} 23. Rd2 {[%clk 0:01:06]} 23...
Rc8 {[%clk 0:00:57.8]} 24. a4 {[%clk 0:01:01.3]} 24... Nxa4 {[%clk 0:00:52.7]}
25. Ra1 {[%clk 0:00:58.5]} 25... Ndb6 {[%clk 0:00:52.4]} 26. Rda2 {[%clk
0:00:57.8]} 26... Be7 {[%clk 0:00:47]} 27. Be3 {[%clk 0:00:52.6]} 27... Rc4
{[%clk 0:00:35.7]} 28. Kg2 {[%clk 0:00:49]} 28... Kd7 {[%clk 0:00:34.5]} 29. Nd3
{[%clk 0:00:47.9]} 29... Rhc8 {[%clk 0:00:24.1]} 30. h5 {[%clk 0:00:42.5]} 30...
Rc3 {[%clk 0:00:22.7]} 31. Nf4 {[%clk 0:00:39.4]} 31... R8c4 {[%clk 0:00:21.1]}
32. Ne2 {[%clk 0:00:36.2]} 32... Rc2 {[%clk 0:00:19.8]} 33. Rxc2 {[%clk
0:00:37.1]} 33... Rxc2 {[%clk 0:00:21.7]} 34. Nf4 {[%clk 0:00:34.4]} 34... Rb2
{[%clk 0:00:21.3]} 35. Nh3 {[%clk 0:00:33.7]} 35... Rxb5 {[%clk 0:00:21.2]} 36.
g5 {[%clk 0:00:33.7]} 36... hxg5 {[%clk 0:00:23.1]} 37. Nhxg5 {[%clk 0:00:31.8]}
37... Ke8 {[%clk 0:00:24.4]} 38. Nh7 {[%clk 0:00:24.7]} 38... a6 {[%clk
0:00:23.4]} 39. Rg1 {[%clk 0:00:22.2]} 39... Nc4 {[%clk 0:00:19]} 40. Kh3 {[%clk
0:00:21.8]} 40... Nxe3 {[%clk 0:00:20.3]} 41. fxe3 {[%clk 0:00:23.7]} 41... Bf8
{[%clk 0:00:21.7]} 42. h6 {[%clk 0:00:20.3]} 42... g6 {[%clk 0:00:18.9]} 43.
Nf6+ {[%clk 0:00:20.6]} 43... Ke7 {[%clk 0:00:20.3]} 44. h7 {[%clk 0:00:17.1]}
44... Bg7 {[%clk 0:00:21.8]} 45. Kg4 {[%clk 0:00:16.1]} 45... Rb3 {[%clk
0:00:17.3]} 46. Kf4 {[%clk 0:00:15.7]} 46... Nc3 {[%clk 0:00:17.8]} 47. Rh1
{[%clk 0:00:16.1]} 47... Ne2+ {[%clk 0:00:18.3]} 48. Kg4 {[%clk 0:00:17.2]}
48... Bh8 {[%clk 0:00:18.2]} 49. Ng5 {[%clk 0:00:16.1]} 49... Rxe3 {[%clk
0:00:17.4]} 50. Re1 {[%clk 0:00:16.9]} 50... Rg3+ {[%clk 0:00:15.6]} 51. Kh4
{[%clk 0:00:17.6]} 51... Rg2 {[%clk 0:00:16.4]} 52. Rd1 {[%clk 0:00:18]} 52...
b5 {[%clk 0:00:12.5]} 53. Rd2 {[%clk 0:00:18.7]} 53... Nf4 {[%clk 0:00:12.9]}
54. Rd1 {[%clk 0:00:18]} 54... Rc2 {[%clk 0:00:12.9]} 55. Rf1 {[%clk 0:00:18.9]}
55... Ng2+ {[%clk 0:00:14]} 56. Kg3 {[%clk 0:00:19.4]} 56... Ne3 {[%clk
0:00:15.9]} 57. Rf3 {[%clk 0:00:19.3]} 57... Nf5+ {[%clk 0:00:16.9]} 58. Kg4
{[%clk 0:00:19.5]} 58... b4 {[%clk 0:00:17.1]} 59. Ng8+ {[%clk 0:00:20.4]} 59...
Kf8 {[%clk 0:00:17.8]} 60. Nf6 {[%clk 0:00:19.1]} 60... a5 {[%clk 0:00:18.6]}
61. Nd7+ {[%clk 0:00:16.5]} 61... Ke7 {[%clk 0:00:19.5]} 62. Nf6 {[%clk
0:00:15.7]} 62... a4 {[%clk 0:00:20.7]} 63. Rh3 {[%clk 0:00:14.8]} 63... b3
{[%clk 0:00:20.9]} 64. Ng8+ {[%clk 0:00:10.9]} 64... Kf8 {[%clk 0:00:21.7]} 65.
Nh6 {[%clk 0:00:12.1]} 65... Nxh6+ {[%clk 0:00:21.8]} 66. Rxh6 {[%clk
0:00:13.7]} 66... b2 {[%clk 0:00:21.8]} 67. Rh3 {[%clk 0:00:11.9]} 67... b1=Q
{[%clk 0:00:21.9]} 68. Rf3 {[%clk 0:00:13.8]} 68... Qg1+ {[%clk 0:00:22.5]} 69.
Kf4 {[%clk 0:00:13.8]} 69... Rf2 {[%clk 0:00:22]} 0-1

[Event "*** Biggest EVER Titled Tuesday"]
[Site "Chess.com"]
[Date "2018.04.17"]
[Round "2"]
[White "Th3ChessViking"]
[Black "FancyPlaySyndrome"]
[Result "0-1"]
[WhiteElo "2396"]
[BlackElo "2407"]
[TimeControl "180+2"]
[EndTime "13:24:35 PDT"]
[Termination "FancyPlaySyndrome won on time"]

1. d4 {[%clk 0:02:53.8]} 1... g6 {[%clk 0:02:29.8]} 2. Nf3 {[%clk 0:02:51.9]}
2... Bg7 {[%clk 0:02:31]} 3. Bf4 {[%clk 0:02:51.5]} 3... d6 {[%clk 0:02:32.3]}
4. e3 {[%clk 0:02:50.9]} 4... Nd7 {[%clk 0:02:33.5]} 5. h3 {[%clk 0:02:51.8]}
5... c5 {[%clk 0:02:32.7]} 6. c3 {[%clk 0:02:50.9]} 6... Ngf6 {[%clk 0:02:31.2]}
7. Bd3 {[%clk 0:02:34]} 7... a6 {[%clk 0:02:32.3]} 8. a4 {[%clk 0:02:34.4]} 8...
b6 {[%clk 0:02:33.1]} 9. O-O {[%clk 0:02:34.4]} 9... Bb7 {[%clk 0:02:34.5]} 10.
Bh2 {[%clk 0:02:32.9]} 10... O-O {[%clk 0:02:33.3]} 11. Na3 {[%clk 0:02:33.8]}
11... Ne4 {[%clk 0:02:30.8]} 12. Nc4 {[%clk 0:02:12.6]} 12... f5 {[%clk
0:02:23.4]} 13. Nfd2 {[%clk 0:02:05.5]} 13... b5 {[%clk 0:02:06.6]} 14. axb5
{[%clk 0:01:58.3]} 14... axb5 {[%clk 0:02:08.2]} 15. Na3 {[%clk 0:01:52.6]}
15... Nxd2 {[%clk 0:01:59.2]} 16. Qxd2 {[%clk 0:01:51.5]} 16... c4 {[%clk
0:02:00.3]} 17. Bc2 {[%clk 0:01:42.2]} 17... Qc8 {[%clk 0:02:01.1]} 18. f3
{[%clk 0:01:36.3]} 18... Qc6 {[%clk 0:02:00.7]} 19. e4 {[%clk 0:01:30.1]} 19...
e5 {[%clk 0:01:53.1]} 20. dxe5 {[%clk 0:01:11.8]} 20... dxe5 {[%clk 0:01:53.8]}
21. Rad1 {[%clk 0:01:10.3]} 21... Nc5 {[%clk 0:01:48.7]} 22. exf5 {[%clk
0:01:04.4]} 22... gxf5 {[%clk 0:01:50.6]} 23. Qd6 {[%clk 0:01:03.4]} 23... e4
{[%clk 0:01:22.9]} 24. Qxc6 {[%clk 0:01:00.9]} 24... Bxc6 {[%clk 0:01:24.5]} 25.
Bd6 {[%clk 0:00:59.7]} 25... Nd3 {[%clk 0:01:25.7]} 26. Bxf8 {[%clk 0:00:57.4]}
26... Bxf8 {[%clk 0:01:27.2]} 27. fxe4 {[%clk 0:00:58.1]} 27... fxe4 {[%clk
0:01:27.6]} 28. Nb1 {[%clk 0:00:27.3]} 28... Bc5+ {[%clk 0:01:21.5]} 29. Kh2
{[%clk 0:00:26.1]} 29... Nxb2 {[%clk 0:01:18.6]} 30. Rde1 {[%clk 0:00:22.6]}
30... Nd3 {[%clk 0:01:18.9]} 31. Re2 {[%clk 0:00:23.9]} 31... Kg7 {[%clk
0:01:10.6]} 32. Rf5 {[%clk 0:00:21.9]} 32... Bd6+ {[%clk 0:01:11.6]} 33. g3
{[%clk 0:00:21.9]} 33... Kg6 {[%clk 0:01:09.1]} 34. Rf1 {[%clk 0:00:21.5]} 34...
h5 {[%clk 0:01:04.7]} 35. h4 {[%clk 0:00:22.3]} 35... Re8 {[%clk 0:01:04.1]} 36.
Nd2 {[%clk 0:00:21.8]} 36... Bc5 {[%clk 0:00:52.2]} 37. Ra1 {[%clk 0:00:22.2]}
37... Kf7 {[%clk 0:00:48.1]} 38. Ra6 {[%clk 0:00:22.4]} 38... Re6 {[%clk
0:00:48.4]} 39. Nf1 {[%clk 0:00:15.2]} 39... e3 {[%clk 0:00:46.8]} 40. Bd1
{[%clk 0:00:10]} 40... Bf3 {[%clk 0:00:28.1]} 41. Rxe6 {[%clk 0:00:11.9]} 41...
Bxe2 {[%clk 0:00:26.8]} 42. Rxe3 {[%clk 0:00:12.6]} 42... Bxe3 {[%clk
0:00:23.4]} 43. Nxe3 {[%clk 0:00:14.5]} 43... Bxd1 {[%clk 0:00:24]} 44. Nxd1
{[%clk 0:00:16.4]} 44... Kf6 {[%clk 0:00:25.6]} 45. Kg2 {[%clk 0:00:14.8]} 45...
Ke5 {[%clk 0:00:25.3]} 46. Kf3 {[%clk 0:00:16.2]} 46... Ne1+ {[%clk 0:00:26.2]}
47. Ke2 {[%clk 0:00:16.6]} 47... Nc2 {[%clk 0:00:26.2]} 48. Kf3 {[%clk
0:00:14.2]} 48... Ne1+ {[%clk 0:00:25.1]} 49. Ke2 {[%clk 0:00:14.4]} 49... Nd3
{[%clk 0:00:26.7]} 50. Ke3 {[%clk 0:00:13.9]} 50... Nc5 {[%clk 0:00:27.4]} 51.
Nf2 {[%clk 0:00:13.8]} 51... Na4 {[%clk 0:00:28.5]} 52. Kd2 {[%clk 0:00:12.5]}
52... Kf5 {[%clk 0:00:29.3]} 53. Kc2 {[%clk 0:00:11]} 53... Nc5 {[%clk
0:00:30.4]} 54. Kd2 {[%clk 0:00:12.5]} 54... Ne4+ {[%clk 0:00:19.2]} 55. Nxe4
{[%clk 0:00:12.2]} 55... Kxe4 {[%clk 0:00:21.1]} 56. Ke2 {[%clk 0:00:13.5]}
56... Kd5 {[%clk 0:00:21.9]} 57. Ke3 {[%clk 0:00:11.8]} 57... Ke5 {[%clk
0:00:22.7]} 58. Kf3 {[%clk 0:00:13.1]} 58... Kf5 {[%clk 0:00:23.8]} 59. Kf2
{[%clk 0:00:09.9]} 59... Kg4 {[%clk 0:00:24.9]} 60. Kg2 {[%clk 0:00:02.5]} 60...
b4 {[%clk 0:00:25.8]} 61. cxb4 {[%clk 0:00:04.3]} 61... c3 {[%clk 0:00:27.7]}
62. b5 {[%clk 0:00:06.2]} 62... c2 {[%clk 0:00:29.2]} 63. b6 {[%clk 0:00:08.1]}
63... c1=Q {[%clk 0:00:30.7]} 64. b7 {[%clk 0:00:10]} 64... Qb2+ {[%clk
0:00:32.3]} 0-1

[Event "*** Biggest EVER Titled Tuesday"]
[Site "Chess.com"]
[Date "2018.04.17"]
[Round "2"]
[White "PrinceMurad09"]
[Black "GM_dmitrij"]
[Result "0-1"]
[WhiteElo "2350"]
[BlackElo "2657"]
[TimeControl "180+2"]
[EndTime "13:24:42 PDT"]
[Termination "GM_dmitrij won by checkmate"]

1. e4 {[%clk 0:02:59]} 1... e5 {[%clk 0:03:00.2]} 2. Nf3 {[%clk 0:03:00]} 2...
Nc6 {[%clk 0:03:01.3]} 3. Bb5 {[%clk 0:03:00.5]} 3... a6 {[%clk 0:03:00.9]} 4.
Bxc6 {[%clk 0:02:51.9]} 4... dxc6 {[%clk 0:03:02.8]} 5. O-O {[%clk 0:02:42.4]}
5... Bg4 {[%clk 0:03:03.6]} 6. d3 {[%clk 0:02:41.1]} 6... Qf6 {[%clk 0:03:02.4]}
7. Be3 {[%clk 0:02:42]} 7... O-O-O {[%clk 0:02:53.6]} 8. h3 {[%clk 0:02:42.6]}
8... Bxf3 {[%clk 0:02:50.3]} 9. Qxf3 {[%clk 0:02:43.4]} 9... Qxf3 {[%clk
0:02:51.1]} 10. gxf3 {[%clk 0:02:45.3]} 10... f5 {[%clk 0:02:51.1]} 11. Bg5
{[%clk 0:02:11.4]} 11... Be7 {[%clk 0:02:51.6]} 12. Bxe7 {[%clk 0:02:10.1]}
12... Nxe7 {[%clk 0:02:53.5]} 13. Nd2 {[%clk 0:02:09.5]} 13... Ng6 {[%clk
0:02:44.3]} 14. Kh2 {[%clk 0:02:00.7]} 14... Rhf8 {[%clk 0:02:44.6]} 15. Rae1
{[%clk 0:01:50.7]} 15... Rf6 {[%clk 0:02:38.9]} 16. Re2 {[%clk 0:01:46.3]} 16...
Rdf8 {[%clk 0:02:31.6]} 17. Rg1 {[%clk 0:01:41]} 17... fxe4 {[%clk 0:02:15.1]}
18. Rxe4 {[%clk 0:01:33.9]} 18... Rf5 {[%clk 0:02:07.5]} 19. Rgg4 {[%clk
0:01:05.6]} 19... Kd7 {[%clk 0:02:03.4]} 20. a4 {[%clk 0:01:04.9]} 20... R8f7
{[%clk 0:01:58.6]} 21. Rg3 {[%clk 0:00:53.1]} 21... b5 {[%clk 0:01:49.1]} 22. a5
{[%clk 0:00:46.4]} 22... Nf4 {[%clk 0:01:46.7]} 23. d4 {[%clk 0:00:38.2]} 23...
exd4 {[%clk 0:01:41.3]} 24. Rxd4+ {[%clk 0:00:39.1]} 24... Kc8 {[%clk
0:01:42.8]} 25. Re4 {[%clk 0:00:30.5]} 25... g5 {[%clk 0:01:34.6]} 26. Nb3
{[%clk 0:00:31.1]} 26... c5 {[%clk 0:01:32.1]} 27. Re8+ {[%clk 0:00:26.7]} 27...
Kb7 {[%clk 0:01:31.9]} 28. Rg8 {[%clk 0:00:28]} 28... Ne6 {[%clk 0:01:25]} 29.
Nd2 {[%clk 0:00:28.1]} 29... Nd4 {[%clk 0:01:18.2]} 30. c3 {[%clk 0:00:27.7]}
30... Nxf3+ {[%clk 0:01:03.1]} 31. Nxf3 {[%clk 0:00:29.6]} 31... Rxf3 {[%clk
0:01:04.7]} 32. R8xg5 {[%clk 0:00:29.8]} 32... Rxf2+ {[%clk 0:01:05.7]} 33. Rg2
{[%clk 0:00:31.2]} 33... c4 {[%clk 0:00:59.1]} 34. Rh5 {[%clk 0:00:30]} 34...
Kc6 {[%clk 0:00:47.7]} 35. Rh6+ {[%clk 0:00:31]} 35... R2f6 {[%clk 0:00:48.8]}
36. Rh5 {[%clk 0:00:31.4]} 36... Rf5 {[%clk 0:00:42.5]} 37. Rh6+ {[%clk
0:00:30.8]} 37... R5f6 {[%clk 0:00:44]} 38. Rh5 {[%clk 0:00:32.2]} 38... Kd6
{[%clk 0:00:45]} 39. Rh4 {[%clk 0:00:32.7]} 39... h6 {[%clk 0:00:31.8]} 40. Rd2+
{[%clk 0:00:33.5]} 40... Ke7 {[%clk 0:00:32.4]} 41. Kg2 {[%clk 0:00:34.5]} 41...
Kf8 {[%clk 0:00:29.7]} 42. Rg4 {[%clk 0:00:34.5]} 42... Re7 {[%clk 0:00:26.4]}
43. Rd8+ {[%clk 0:00:35.3]} 43... Kf7 {[%clk 0:00:27.1]} 44. Rd2 {[%clk
0:00:36.8]} 44... Ke6 {[%clk 0:00:27.8]} 45. Re4+ {[%clk 0:00:37.8]} 45... Kf7
{[%clk 0:00:27.9]} 46. Rg4 {[%clk 0:00:39.7]} 46... Rfe6 {[%clk 0:00:29]} 47.
Rf4+ {[%clk 0:00:40]} 47... Kg7 {[%clk 0:00:29.4]} 48. Rg4+ {[%clk 0:00:41]}
48... Kh7 {[%clk 0:00:28.9]} 49. Kf2 {[%clk 0:00:42]} 49... Rf6+ {[%clk
0:00:29.4]} 50. Kg2 {[%clk 0:00:43]} 50... h5 {[%clk 0:00:30.1]} 51. Rg5 {[%clk
0:00:43.8]} 51... Kh6 {[%clk 0:00:30.8]} 52. Rgd5 {[%clk 0:00:44.8]} 52... Rg7+
{[%clk 0:00:31.3]} 53. Kh2 {[%clk 0:00:45.2]} 53... Rg5 {[%clk 0:00:29.9]} 54.
Rd7 {[%clk 0:00:45.3]} 54... c5 {[%clk 0:00:29]} 55. R7d6 {[%clk 0:00:45.7]}
55... Rf5 {[%clk 0:00:30]} 56. R6d5 {[%clk 0:00:45.2]} 56... Kg5 {[%clk
0:00:30.6]} 57. Rg2+ {[%clk 0:00:45.8]} 57... Kf4 {[%clk 0:00:30.9]} 58. Rdd2
{[%clk 0:00:45.6]} 58... Re6 {[%clk 0:00:22.2]} 59. Rdf2+ {[%clk 0:00:35.1]}
59... Ke5 {[%clk 0:00:23.4]} 60. Rd2 {[%clk 0:00:35.6]} 60... Kf6 {[%clk
0:00:23.9]} 61. Rd8 {[%clk 0:00:36.2]} 61... b4 {[%clk 0:00:23.4]} 62. Rdd2
{[%clk 0:00:36.7]} 62... bxc3 {[%clk 0:00:23.6]} 63. bxc3 {[%clk 0:00:38.6]}
63... Rf3 {[%clk 0:00:24.3]} 64. Rd5 {[%clk 0:00:39.2]} 64... Rxc3 {[%clk
0:00:21.6]} 65. Rxc5 {[%clk 0:00:38.4]} 65... h4 {[%clk 0:00:23.5]} 66. Rh5
{[%clk 0:00:38]} 66... Rc1 {[%clk 0:00:22.7]} 67. Rxh4 {[%clk 0:00:38.8]} 67...
c3 {[%clk 0:00:23.5]} 68. Rc4 {[%clk 0:00:39.9]} 68... Re3 {[%clk 0:00:24.3]}
69. Rf2+ {[%clk 0:00:40.9]} 69... Ke5 {[%clk 0:00:25.7]} 70. h4 {[%clk
0:00:39.2]} 70... Kd5 {[%clk 0:00:27]} 71. Rc8 {[%clk 0:00:39.7]} 71... Rd3
{[%clk 0:00:25.9]} 72. h5 {[%clk 0:00:40]} 72... Ke4 {[%clk 0:00:25.4]} 73. h6
{[%clk 0:00:40.8]} 73... Rd6 {[%clk 0:00:26.5]} 74. Rh8 {[%clk 0:00:37.2]} 74...
c2 {[%clk 0:00:26.4]} 75. h7 {[%clk 0:00:35.4]} 75... Rh1+ {[%clk 0:00:25.6]}
76. Kxh1 {[%clk 0:00:36.8]} 76... c1=Q+ {[%clk 0:00:26.9]} 77. Kg2 {[%clk
0:00:37.1]} 77... Qg5+ {[%clk 0:00:27.9]} 78. Kf1 {[%clk 0:00:37.2]} 78... Rd1+
{[%clk 0:00:28.8]} 79. Ke2 {[%clk 0:00:38.1]} 79... Qd2# {[%clk 0:00:30.7]} 0-1

[Event "*** Biggest EVER Titled Tuesday"]
[Site "Chess.com"]
[Date "2018.04.17"]
[Round "2"]
[White "gkchesstiger"]
[Black "Iball95"]
[Result "1-0"]
[WhiteElo "2807"]
[BlackElo "2536"]
[TimeControl "180+2"]
[EndTime "13:24:48 PDT"]
[Termination "gkchesstiger won by checkmate"]

1. d4 {[%clk 0:03:01.9]} 1... d5 {[%clk 0:02:59.8]} 2. Nf3 {[%clk 0:03:03]} 2...
Nf6 {[%clk 0:03:00.3]} 3. Bf4 {[%clk 0:03:03.3]} 3... c5 {[%clk 0:03:01.6]} 4.
e3 {[%clk 0:03:04.1]} 4... Nc6 {[%clk 0:03:01.1]} 5. Nbd2 {[%clk 0:03:04.7]}
5... cxd4 {[%clk 0:03:02.3]} 6. exd4 {[%clk 0:03:05.4]} 6... Bf5 {[%clk
0:03:03.2]} 7. c3 {[%clk 0:03:05.4]} 7... e6 {[%clk 0:03:02.8]} 8. Bb5 {[%clk
0:03:04.6]} 8... Bd6 {[%clk 0:03:02.9]} 9. Bxd6 {[%clk 0:03:03.1]} 9... Qxd6
{[%clk 0:03:04.8]} 10. O-O {[%clk 0:03:01.2]} 10... O-O {[%clk 0:03:05.4]} 11.
Bxc6 {[%clk 0:03:02]} 11... Qxc6 {[%clk 0:03:01.3]} 12. Ne5 {[%clk 0:03:02.1]}
12... Qc7 {[%clk 0:03:02.3]} 13. a4 {[%clk 0:03:02.5]} 13... b6 {[%clk 0:02:56]}
14. Re1 {[%clk 0:03:02.5]} 14... Rac8 {[%clk 0:02:56.1]} 15. Qb3 {[%clk
0:03:01.6]} 15... Rb8 {[%clk 0:02:50.7]} 16. Qa3 {[%clk 0:03:00.7]} 16... Rfc8
{[%clk 0:02:51.6]} 17. a5 {[%clk 0:03:00.6]} 17... bxa5 {[%clk 0:02:50]} 18. Nb3
{[%clk 0:02:58.6]} 18... a4 {[%clk 0:02:39.4]} 19. Nc5 {[%clk 0:02:59.1]} 19...
Qb6 {[%clk 0:02:32.5]} 20. Ned7 {[%clk 0:02:53]} 20... Nxd7 {[%clk 0:02:22.9]}
21. Nxd7 {[%clk 0:02:53.7]} 21... Qxb2 {[%clk 0:02:24.6]} 22. Nxb8 {[%clk
0:02:54.7]} 22... Qxb8 {[%clk 0:02:22.9]} 23. Qxa4 {[%clk 0:02:55.7]} 23... Rxc3
{[%clk 0:02:24.3]} 24. Qxa7 {[%clk 0:02:54.5]} 24... Qxa7 {[%clk 0:02:24.5]} 25.
Rxa7 {[%clk 0:02:55.4]} 25... g5 {[%clk 0:02:23.5]} 26. h3 {[%clk 0:02:46.1]}
26... Rc4 {[%clk 0:02:20.2]} 27. Rd1 {[%clk 0:02:46.6]} 27... Kg7 {[%clk
0:02:21.2]} 28. Rd2 {[%clk 0:02:46.1]} 28... h5 {[%clk 0:02:16.6]} 29. Kh2
{[%clk 0:02:46.9]} 29... h4 {[%clk 0:02:17.3]} 30. Ra1 {[%clk 0:02:36.3]} 30...
Kf6 {[%clk 0:02:16.4]} 31. Rf1 {[%clk 0:02:36.4]} 31... Rc3 {[%clk 0:02:03.6]}
32. Re1 {[%clk 0:02:30.8]} 32... Rc4 {[%clk 0:02:02.3]} 33. Re3 {[%clk
0:02:29.6]} 33... Kg6 {[%clk 0:02:03.1]} 34. g4 {[%clk 0:02:26.6]} 34... hxg3+
{[%clk 0:02:05]} 35. Kxg3 {[%clk 0:02:26.5]} 35... Rc1 {[%clk 0:02:04.3]} 36. f4
{[%clk 0:02:22.6]} 36... f6 {[%clk 0:01:58.9]} 37. fxg5 {[%clk 0:02:22.9]} 37...
fxg5 {[%clk 0:02:00.8]} 38. h4 {[%clk 0:02:21]} 38... Be4 {[%clk 0:01:43.3]} 39.
hxg5 {[%clk 0:02:18.1]} 39... Kxg5 {[%clk 0:01:45.2]} 40. Ra3 {[%clk 0:02:16.7]}
40... Rg1+ {[%clk 0:01:44.3]} 41. Kf2 {[%clk 0:02:17.4]} 41... Rg2+ {[%clk
0:01:39.7]} 42. Ke1 {[%clk 0:02:18.4]} 42... Rxd2 {[%clk 0:01:41.6]} 43. Kxd2
{[%clk 0:02:19.1]} 43... Kf4 {[%clk 0:01:43.5]} 44. Ra1 {[%clk 0:02:13.2]} 44...
Bf5 {[%clk 0:01:23.7]} 45. Re1 {[%clk 0:02:13.1]} 45... Be4 {[%clk 0:01:24.7]}
46. Rf1+ {[%clk 0:02:11.6]} 46... Kg5 {[%clk 0:01:23.5]} 47. Kc3 {[%clk
0:02:11.6]} 47... Bf5 {[%clk 0:01:22]} 48. Kb4 {[%clk 0:02:05]} 48... Kf6 {[%clk
0:01:21.7]} 49. Re1 {[%clk 0:02:01.3]} 49... Be4 {[%clk 0:01:22]} 50. Rf1+
{[%clk 0:01:59.2]} 50... Bf5 {[%clk 0:01:22.8]} 51. Kc5 {[%clk 0:01:53.6]} 51...
Ke7 {[%clk 0:01:24]} 52. Ra1 {[%clk 0:01:53.2]} 52... Bg4 {[%clk 0:01:24.1]} 53.
Ra7+ {[%clk 0:01:52.3]} 53... Kf6 {[%clk 0:01:24.8]} 54. Kd6 {[%clk 0:01:52.7]}
54... Bf5 {[%clk 0:01:25.1]} 55. Ra8 {[%clk 0:01:49.9]} 55... Kf7 {[%clk
0:01:26.1]} 56. Ke5 {[%clk 0:01:50.5]} 56... Ke7 {[%clk 0:01:22.1]} 57. Ra7+
{[%clk 0:01:51.2]} 57... Kd8 {[%clk 0:01:21.7]} 58. Kd6 {[%clk 0:01:52.1]} 58...
Ke8 {[%clk 0:01:22.6]} 59. Rc7 {[%clk 0:01:50.4]} 59... Kd8 {[%clk 0:01:21.8]}
60. Re7 {[%clk 0:01:50]} 60... Kc8 {[%clk 0:01:22.1]} 61. Re8+ {[%clk
0:01:47.6]} 61... Kb7 {[%clk 0:01:23.1]} 62. Rf8 {[%clk 0:01:46.1]} 62... Kb6
{[%clk 0:01:21.2]} 63. Rb8+ {[%clk 0:01:47]} 63... Ka5 {[%clk 0:01:22.3]} 64.
Rb2 {[%clk 0:01:47.1]} 64... Ka6 {[%clk 0:01:23]} 65. Kc6 {[%clk 0:01:46.8]}
65... Ka5 {[%clk 0:01:23.5]} 66. Rb8 {[%clk 0:01:43.3]} 66... Bg4 {[%clk
0:01:21.8]} 67. Kd6 {[%clk 0:01:43.9]} 67... Ka6 {[%clk 0:01:18.3]} 68. Re8
{[%clk 0:01:42.5]} 68... Kb7 {[%clk 0:01:16]} 69. Rf8 {[%clk 0:01:35.6]} 69...
Bh3 {[%clk 0:01:15.3]} 70. Rf7+ {[%clk 0:01:32.1]} 70... Kb6 {[%clk 0:01:11.4]}
71. Rf3 {[%clk 0:01:32.8]} 71... Bg4 {[%clk 0:01:11.7]} 72. Rb3+ {[%clk
0:01:33.5]} 72... Ka6 {[%clk 0:01:09.4]} 73. Kc5 {[%clk 0:01:33.2]} 73... Bf5
{[%clk 0:01:07.2]} 74. Rb2 {[%clk 0:01:29.6]} 74... Bg4 {[%clk 0:01:07]} 75.
Rb6+ {[%clk 0:01:26.6]} 75... Ka7 {[%clk 0:00:56.6]} 76. Kc6 {[%clk 0:01:24.9]}
76... Bf5 {[%clk 0:00:55.4]} 77. Kc7 {[%clk 0:01:25.5]} 77... Bg4 {[%clk
0:00:53.1]} 78. Rd6 {[%clk 0:01:25.4]} 78... Bf5 {[%clk 0:00:52.4]} 79. Kc6
{[%clk 0:01:21]} 79... Bg4 {[%clk 0:00:51.8]} 80. Rd8 {[%clk 0:01:20.3]} 80...
Bf5 {[%clk 0:00:50.9]} 81. Rg8 {[%clk 0:01:19.8]} 81... Bh3 {[%clk 0:00:49.7]}
82. Rg7+ {[%clk 0:01:14.5]} 82... Ka8 {[%clk 0:00:45.3]} 83. Rg3 {[%clk
0:01:13.4]} 83... Bf5 {[%clk 0:00:44.8]} 84. Kc7 {[%clk 0:01:14.6]} 84... e5
{[%clk 0:00:11.3]} 85. Ra3# {[%clk 0:01:14.8]} 1-0